fUSD/lending_fUSD_20240425
["ID","MTS","AMOUNT","RATE_DAILY","PERIOD"]
[323464871,1714018241601,-2766.4925402,0.00012898,2]
[323464872,1714018241610,-207.04485295,0.00012898,2]
[323464873,1714018241619,-2432.39273441,0.00012899,2]
[323464874,1714018241629,-2766.4925402,0.00012899,2]
[323464875,1714018241639,-365.97088217,0.000129,2]
[323464876,1714018241648,-1208.06600894,0.000129,2]
[323464877,1714018241657,-1208.06600893,0.000129,2]
[323464878,1714018241666,-1208.06600893,0.000129,2]
[323464879,1714018241675,-1208.06600893,0.000129,2]
[323464880,1714018241684,-1208.06600893,0.000129,2]
[323464881,1714018241693,-1208.06600893,0.000129,2]
[323464882,1714018241702,-1208.06600893,0.000129,2]
[323464883,1714018241711,-1208.06600893,0.000129,2]
[323464884,1714018241720,-180.45301572,0.000129,2]
[323464885,1714018241730,-2432.39273441,0.000129,2]
[323464886,1714018241740,-1000.0,0.000129,2]
[323464887,1714018241750,-2766.4925402,0.000129,2]
[323464888,1714018241759,-2613.70492777,0.00012937,2]
[323464889,1714018241769,-3017.78766895,0.0001295,2]
[323464890,1714018241778,-1000.83231004,0.0001297,2]
[323464891,1714018241788,-931.68172619,0.0001297,2]
[323464892,1714018241797,-500.0,0.0001297,2]
[323464893,1714018241806,-157.86285769,0.00012975,2]
[323464894,1714018241816,-686.02705259,0.00012983,2]
[323464895,1714018241825,-155.04826296,0.00012983,2]
[323464896,1714018241834,-489.97794667,0.00012983,2]
[323464897,1714018241844,-1608.20701767,0.00012983,2]
[323464898,1714018241854,-3766.12018923,0.00012983,2]
[323464899,1714018241864,-1246.68714303,0.00012983,2]
[323464900,1714018241873,-249.28032284,0.00012983,2]
[323464901,1714018241883,-500.0,0.00012984,2]
[323464902,1714018241892,-500.0,0.00012984,2]
[323464903,1714018241902,-500.0,0.00012984,2]
[323464904,1714018241911,-500.0,0.00012984,2]
[323464905,1714018241920,-155.0,0.00012984,2]
[323464906,1714018241930,-553.0,0.00012985,2]
[323464907,1714018241939,-305.29430304,0.00012985,2]
[323464908,1714018241948,-500.0,0.00012985,2]
[323464909,1714018241957,-151.0,0.00012985,2]
[323464910,1714018241966,-108135.81947145,0.00012985,2]
[323464911,1714018241980,-8683.08894829,0.00012985,2]
[323464912,1714018241994,-3096.18912661,0.00012985,2]
[323464930,1714018242582,-457.05263004,0.00011989,2]
[323464931,1714018242854,-260.94852996,0.00011989,2]
[323464932,1714018242863,-409.57911822,0.00012725,2]
[323464933,1714018242875,-664.19085594,0.00012725,2]
[323464934,1714018242885,-5922.20839191,0.00012985,2]
[323464935,1714018242896,-13320.0,0.00012985,2]
[323464938,1714018245546,-1038.17554806,0.00012984,2]
[323464939,1714018245556,-3334.60669941,0.00012985,2]
[323464940,1714018245570,-549.5572481,0.00012985,2]
[323464941,1714018245605,-59780.79474199,0.00012985,2]
[323464942,1714018245769,-3030.99915328,0.00012985,2]
[323464943,1714018245826,-6028.6047016,0.00012985,2]
[323464946,1714019360169,-304.93366958,9.341e-05,2]
[323464947,1714019360189,-414.41284543,9.341e-05,2]
[323464948,1714019360208,-155.0,9.341e-05,2]
[323464949,1714019360228,-414.41284543,9.341e-05,2]
[323464950,1714019360248,-1608.83176517,9.342e-05,2]
[323464951,1714019360269,-428.96,9.355e-05,2]
[323464952,1714019361167,1242.31430456,9.34e-05,2]
[323464983,1714019432022,-150.0,9.972e-05,2]
[323464984,1714019432031,-427.25783952,0.0001,2]
[323464985,1714019432041,-150.0,0.00010133,2]
[323464986,1714019432050,-150.0,0.0001024,2]
[323464987,1714019432060,-150.0,0.00010364,2]
[323464988,1714019432069,-150.0,0.00010575,2]
[323464989,1714019432078,-150.0,0.00010593,2]
[323464990,1714019432088,-150.0,0.00010643,2]
[323464991,1714019432097,-150.0,0.00010671,2]
[323464992,1714019432106,-150.0,0.00010743,2]
[323464993,1714019432119,-150.0,0.00010876,2]
[323464994,1714019432128,-1175.88,0.00010917,2]
[323464995,1714019432137,-150.0,0.00010925,2]
[323464996,1714019432146,-480.0,0.00010933,2]
[323464997,1714019432155,-150.0,0.00010968,2]
[323464998,1714019432164,-150.0,0.00010991,2]
[323464999,1714019432173,-154.47,0.00011115,2]
[323465000,1714019432183,-150.0,0.00011144,2]
[323465001,1714019432192,-150.0,0.0001116,2]
[323465002,1714019432201,-150.0,0.00011239,2]
[323465003,1714019432211,-150.0,0.0001125,2]
[323465004,1714019432220,-150.0,0.00011289,2]
[323465005,1714019432230,-150.0,0.00011327,2]
[323465006,1714019432239,-150.0,0.00011332,2]
[323465007,1714019432248,-150.0,0.00011332,2]
[323465008,1714019432256,-150.0,0.00011368,2]
[323465009,1714019432266,-2867.08629184,0.00011397,2]
[323465010,1714019432275,-154.47,0.00011404,2]
[323465011,1714019432284,-150.0,0.00011436,2]
[323465012,1714019432293,-150.0,0.00011491,2]
[323465013,1714019432303,-428.96,0.00011619,2]
[323465014,1714019432314,-150.0,0.00011676,2]
[323465015,1714019432324,-154.47,0.00011694,2]
[323465016,1714019432333,-150.0,0.00011701,2]
[323465017,1714019432342,-150.0,0.00011709,2]
[323465018,1714019432351,-150.0,0.00011842,2]
[323465019,1714019432360,-668.53,0.00011848,2]
[323465020,1714019432372,-668.53,0.00011851,2]
[323465021,1714019432381,-668.53,0.00011854,2]
[323465022,1714019432391,-668.53,0.00011857,2]
[323465023,1714019432400,-150.0,0.00011858,2]
[323465024,1714019432410,-668.53,0.0001186,2]
[323465026,1714019432420,-668.53,0.00011863,2]
[323465028,1714019432431,-668.53,0.00011866,2]
[323465029,1714019432442,-668.53,0.0001187,2]
[323465030,1714019432452,-96.34570124,0.0001187,2]
[323465031,1714019432476,-423.65429876,0.0001187,2]
[323465032,1714019432486,-542.78033498,0.00011873,2]
[323465033,1714019432505,-125.74966502,0.00011873,2]
[323465034,1714019432516,-132.82884752,0.00011876,2]
[323465035,1714019432570,-535.70115248,0.00011876,2]
[323465036,1714019432580,-264.29884752,0.00011879,2]
[323465037,1714019432593,-404.23115248,0.00011879,2]
[323465038,1714019432604,-507.98617648,0.00011882,2]
[323465039,1714019432618,-160.54382352,0.00011882,2]
[323465040,1714019432628,-668.53,0.00011885,2]
[323465041,1714019432638,-668.53,0.00011888,2]
[323465042,1714019432648,-668.53,0.00011891,2]
[323465043,1714019432659,-668.53,0.00011895,2]
[323465044,1714019432669,-668.53,0.00011898,2]
[323465045,1714019432680,-668.53,0.00011901,2]
[323465046,1714019432690,-668.53,0.00011904,2]
[323465047,1714019432701,-668.53,0.00011907,2]
[323465048,1714019432710,-2750.0,0.00012,2]
[323465049,1714019432720,-150.0,0.00012001,2]
[323465050,1714019432729,-150.0,0.00012023,2]
[323465051,1714019432739,-150.0,0.00012063,2]
[323465052,1714019432748,-150.0,0.00012078,2]
[323465053,1714019432758,-150.0,0.0001211,2]
[323465054,1714019432768,-150.0,0.00012131,2]
[323465055,1714019432779,-150.0,0.00012148,2]
[323465056,1714019432789,-150.0,0.00012172,2]
[323465057,1714019432799,-150.0,0.00012207,2]
[323465058,1714019432810,-1242.31430456,0.00012229,2]
[323465059,1714019432819,-150.0,0.0001223,2]
[323465060,1714019432830,-522.13,0.00012278,2]
[323465061,1714019432840,-522.13,0.00012278,2]
[323465062,1714019432850,-350.51,0.00012278,2]
[323465063,1714019432860,-522.13,0.00012278,2]
[323465064,1714019432872,-350.51,0.00012278,2]
[323465065,1714019432882,-525.77,0.00012278,2]
[323465066,1714019432892,-480.0,0.00012299,2]
[323465067,1714019432901,-150.0,0.00012316,2]
[323465068,1714019432913,-150.0,0.00012326,2]
[323465069,1714019432924,-150.44,0.00012378,2]
[323465070,1714019432934,-522.13,0.00012378,2]
[323465071,1714019432944,-837.33,0.00012378,2]
[323465072,1714019432954,-351.41,0.00012378,2]
[323465073,1714019432966,-522.13,0.00012378,2]
[323465074,1714019432977,-150.0,0.00012378,2]
[323465075,1714019432989,-350.51,0.00012378,2]
[323465076,1714019432999,-350.51,0.00012378,2]
[323465077,1714019433009,-150.0,0.00012378,2]
[323465078,1714019433020,-150.0,0.00012391,2]
[323465079,1714019433031,-150.0,0.00012457,2]
[323465080,1714019433041,-432.2412,0.00012485,2]
[323465081,1714019433051,-150.0,0.00012593,2]
[323465082,1714019433061,-251.739,0.00012599,2]
[323465083,1714019433073,-1221.493,0.00012599,2]
[323465084,1714019433085,-150.0,0.0001263,2]
[323465085,1714019433096,-150.0,0.00012667,2]
[323465086,1714019433106,-150.0,0.00012673,2]
[323465087,1714019433121,-150.0,0.00012707,2]
[323465088,1714019433375,-1017.55545551,0.00012725,2]
[323465089,1714019433387,-150.0,0.00012792,2]
[323465090,1714019433398,-606.41,0.00012814,2]
[323465091,1714019433408,-485.51852319,0.00012814,2]
[323465092,1714019433418,-500.0,0.00012815,2]
[323465093,1714019433428,-200.0,0.00012867,10]
[323465094,1714019433440,-1000.0,0.0001288,2]
[323465095,1714019433451,-500.0,0.0001288,2]
[323465096,1714019433462,-1000.0,0.00012881,2]
[323465097,1714019433472,-1000.0,0.00012881,2]
[323465098,1714019433483,-500.0,0.00012881,2]
[323465099,1714019433494,-150.0,0.00012885,2]
[323465100,1714019433504,-14393.427,0.00012885,2]
[323465101,1714019433513,-6789.69450575,0.00012885,2]
[323465102,1714019433528,-281.8,0.00012885,2]
[323465119,1714019437721,-37150.24809425,0.00012885,2]
[323465120,1714019437731,-173.93618721,0.00012886,2]
[323465121,1714019437740,-675.86402835,0.00012886,2]
[323465122,1714019437750,-199.63681186,0.00012886,2]
[323465123,1714019437759,-342.45569332,0.00012886,2]
[323465124,1714019437768,-675.86402828,0.00012887,2]
[323465125,1714019437778,-675.86402828,0.00012889,2]
[323465126,1714019437787,-177.04248623,0.00012889,2]
[323465127,1714019437796,-675.86402828,0.0001289,2]
[323465128,1714019437807,-675.86402828,0.00012891,2]
[323465129,1714019437817,-675.86402828,0.00012892,2]
[323465130,1714019437826,-675.86402828,0.00012894,2]
[323465131,1714019437835,-675.86402828,0.00012895,2]
[323465132,1714019437845,-675.86402828,0.00012896,2]
[323465133,1714019437855,-675.86402828,0.00012897,2]
[323465134,1714019437864,-675.86402828,0.00012899,2]
[323465135,1714019437876,-366.01338565,0.000129,2]
[323465136,1714019437885,-1000.0,0.000129,2]
[323465137,1714019437896,-10000.0,0.000129,2]
[323465138,1714019437910,-675.86402828,0.000129,2]
[323465139,1714019437919,-199.5746796,0.000129,2]
[323465140,1714019437928,-4619.92279251,0.0001297,2]
[323465141,1714019437937,-856.28137054,0.00012974,2]
[323465142,1714019437946,-522.0048724,0.00012974,2]
[323465143,1714019437955,-6199.0729353,0.00012974,2]
[323465144,1714019437964,-155.08284486,0.00012983,2]
[323465145,1714019437973,-213.94764815,0.00012983,2]
[323465146,1714019437984,-158.9351693,0.00012983,2]
[323465147,1714019437995,-155.2098981,0.00012983,2]
[323465148,1714019438005,-155.06159562,0.00012983,2]
[323465149,1714019438014,-255.90576698,0.00012983,2]
[323465150,1714019438023,-341.79005663,0.00012983,2]
[323465151,1714019438032,-304.59358176,0.00012983,2]
[323465152,1714019438043,-414.41284543,0.00012983,2]
[323465153,1714019438052,-442.50665552,0.00012984,2]
[323465155,1714019438062,-500.0,0.00012984,2]
[323465157,1714019438070,-500.0,0.00012984,2]
[323465159,1714019438080,-500.0,0.00012984,2]
[323465161,1714019438089,-508.31065644,0.00012984,2]
[323465163,1714019438098,-500.0,0.00012984,2]
[323465165,1714019438107,-500.0,0.00012984,2]
[323465167,1714019438117,-500.0,0.00012984,2]
[323465168,1714019438126,-319.92954953,0.00012984,2]
[323465169,1714019438135,-171.8416668,0.00012984,2]
[323465171,1714019438144,-503.16026305,0.00012984,2]
[323465173,1714019438153,-500.0,0.00012984,2]
[323465175,1714019438162,-500.0,0.00012984,2]
[323465177,1714019438171,-504.86027487,0.00012984,2]
[323465179,1714019438180,-627.02463669,0.00012984,2]
[323465181,1714019438189,-513.06040431,0.00012984,2]
[323465182,1714019438198,-500.0,0.00012984,2]
[323465184,1714019438207,-500.0,0.00012984,2]
[323465185,1714019438216,-500.0,0.00012984,2]
[323465186,1714019438225,-631.62,0.00012984,2]
[323465187,1714019438234,-500.0,0.00012984,2]
[323465188,1714019438243,-500.0,0.00012984,2]
[323465189,1714019438252,-500.0,0.00012984,2]
[323465190,1714019438262,-211.19250456,0.00012984,2]
[323465191,1714019438271,-283.02562426,0.00012984,2]
[323465192,1714019438280,-500.0,0.00012984,2]
[323465193,1714019438289,-500.0,0.00012984,2]
[323465194,1714019438298,-500.0,0.00012984,2]
[323465195,1714019438306,-500.0,0.00012984,2]
[323465196,1714019438315,-500.0,0.00012984,2]
[323465197,1714019438324,-284.01822229,0.00012984,2]
[323465198,1714019438333,-500.0,0.00012984,2]
[323465199,1714019438342,-500.0,0.00012984,2]
[323465200,1714019438351,-266.12888139,0.00012984,2]
[323465201,1714019438360,-649.89,0.00012984,2]
[323465202,1714019438371,-500.0,0.00012984,2]
[323465203,1714019438380,-500.0,0.00012984,2]
[323465204,1714019438389,-500.0,0.00012984,2]
[323465205,1714019438398,-500.0,0.00012984,2]
[323465206,1714019438407,-500.0,0.00012984,2]
[323465207,1714019438416,-500.0,0.00012984,2]
[323465208,1714019438425,-500.0,0.00012984,2]
[323465209,1714019438434,-816.2,0.00012984,2]
[323465210,1714019438445,-500.0,0.00012984,2]
[323465211,1714019438455,-500.0,0.00012984,2]
[323465212,1714019438464,-1519.68,0.00012984,2]
[323465213,1714019438473,-500.0,0.00012984,2]
[323465214,1714019438482,-500.0,0.00012984,2]
[323465215,1714019438491,-500.0,0.00012984,2]
[323465216,1714019438500,-500.0,0.00012984,2]
[323465217,1714019438509,-754.21,0.00012984,2]
[323465218,1714019438518,-657.31,0.00012984,2]
[323465219,1714019438527,-500.0,0.00012984,2]
[323465220,1714019438537,-3108.05,0.00012984,2]
[323465221,1714019438546,-500.0,0.00012984,2]
[323465222,1714019438555,-636.46,0.00012984,2]
[323465223,1714019438564,-500.0,0.00012984,2]
[323465224,1714019438573,-1887.0,0.00012984,2]
[323465225,1714019438582,-1580.19,0.00012984,2]
[323465226,1714019438592,-1632.75,0.00012984,2]
[323465227,1714019438601,-500.0,0.00012984,2]
[323465228,1714019438610,-500.0,0.00012984,2]
[323465229,1714019438619,-500.0,0.00012984,2]
[323465230,1714019438629,-842.07,0.00012984,2]
[323465231,1714019438638,-500.0,0.00012984,2]
[323465232,1714019438647,-500.0,0.00012984,2]
[323465233,1714019438656,-500.0,0.00012984,2]
[323465234,1714019438665,-3924.51,0.00012984,2]
[323465235,1714019438674,-163.11,0.00012984,2]
[323465236,1714019438683,-500.0,0.00012984,2]
[323465237,1714019438692,-500.0,0.00012984,2]
[323465238,1714019438701,-500.0,0.00012984,2]
[323465239,1714019438710,-502.33403103,0.00012984,2]
[323465240,1714019438719,-189.21334405,0.00012984,2]
[323465241,1714019438728,-521.60458048,0.00012984,2]
[323465242,1714019438737,-216.5295986,0.00012984,2]
[323465243,1714019438746,-511.06844343,0.00012984,2]
[323465244,1714019438755,-290.41143325,0.00012984,2]
[323465245,1714019438765,-500.0,0.00012984,2]
[323465246,1714019438774,-603.31244059,0.00012984,2]
[323465247,1714019438783,-500.0,0.00012984,2]
[323465248,1714019438793,-500.0,0.00012984,2]
[323465249,1714019438802,-506.45514045,0.00012984,2]
[323465250,1714019438812,-500.0,0.00012984,2]
[323465251,1714019438821,-596.0,0.00012985,2]
[323465252,1714019438830,-546.84456326,0.00012985,2]
[323465253,1714019438839,-298.81932009,0.00012985,2]
[323465254,1714019438849,-505.22,0.00012985,2]
[323465255,1714019438858,-1807.58835,0.00012985,2]
[323465256,1714019438867,-74283.66885393,0.00012985,2]
[323465257,1714019439110,-375.58603771,0.00012985,2]
[323465258,1714019439124,-5080.02471071,0.00012985,2]
[323465259,1714019439136,-539.00383144,0.00012985,2]
[323465260,1714019439147,-18715.15162485,0.00012985,2]
[323465261,1714019439171,-364.0,0.00012985,2]
[323465262,1714019439182,-3320.34233048,0.00012985,2]
[323465263,1714019439204,-820.43319219,0.00012985,2]
[323465264,1714019439217,-2334.09987228,0.00012985,2]
[323465265,1714019439243,-49263.80688058,0.00012985,2]
[323465275,1714019440095,-1939.45110117,0.00012985,2]
[323465288,1714019445761,-1083.85915709,0.00012725,2]
[323465289,1714019445770,-89.07844284,0.00012977,2]
[323465290,1714019445782,-338.17939668,0.00012977,2]
[323465291,1714019445791,-295.00443702,0.00012984,2]
[323465292,1714019445801,-500.0,0.00012984,2]
[323465293,1714019445810,-243719.05742451,0.00012985,2]
[323465294,1714019448530,1821.1538879,9.34e-05,2]
[323465295,1714019542405,20176.31019024,9.34e-05,2]
[323465296,1714019547926,943.34796342,9.34e-05,2]
[323465297,1714019556991,1939.05025333,9.34e-05,2]
[323465298,1714019565925,943.34796342,9.34e-05,2]
[323465299,1714019583934,943.34796342,9.34e-05,2]
[323465300,1714019604104,950.8401506,9.34e-05,2]
[323465301,1714019902933,196.78,9.359e-05,2]
[323465303,1714020358032,943.16052287,9.359e-05,2]
[323465351,1714020433809,-414.41284543,9.499e-05,2]
[323465352,1714020433829,-414.41284543,9.499e-05,2]
[323465353,1714020433850,-414.41284543,9.499e-05,2]
[323465354,1714020433869,-414.41284543,9.499e-05,2]
[323465355,1714020433890,-950.0,9.5e-05,2]
[323465356,1714020441730,5886.48372163,9.499e-05,2]
[323465357,1714020538258,467.52,9.378e-05,2]
[323465358,1714020602751,150.0,9.378e-05,2]
[323465359,1714020604857,150.0,9.378e-05,2]
[323465360,1714020605046,150.0,9.378e-05,2]
[323465361,1714020605255,150.0,9.378e-05,2]
[323465362,1714020605429,150.0,9.378e-05,2]
[323465363,1714020605611,150.0,9.378e-05,2]
[323465364,1714020605797,150.0,9.378e-05,2]
[323465365,1714020606014,150.0,9.378e-05,2]
[323465366,1714020606207,155.29537862,9.378e-05,2]
[323465385,1714020632451,-150.0,9.601e-05,2]
[323465387,1714020632461,-1240.89940899,9.678e-05,2]
[323465389,1714020632474,-613.67069101,9.678e-05,2]
[323465390,1714020632484,-150.36721791,9.946e-05,2]
[323465391,1714020632497,-63.31728209,9.946e-05,2]
[323465392,1714020632508,-150.0,0.00010381,2]
[323465393,1714020632750,-150.0,0.00010493,2]
[323465394,1714020632777,-150.0,0.00010509,2]
[323465395,1714020632788,-106.68271791,0.00010516,2]
[323465396,1714020632819,-43.31728209,0.00010516,2]
[323465397,1714020632829,-150.0,0.00010588,2]
[323465398,1714020632839,-150.0,0.00010846,2]
[323465399,1714020632848,-150.0,0.00010937,2]
[323465400,1714020632860,-150.0,0.00010949,2]
[323465401,1714020632869,-150.0,0.00011187,2]
[323465402,1714020632878,-150.0,0.00011244,2]
[323465403,1714020632888,-34.50882086,0.00011282,2]
[323465404,1714020632919,-115.49117914,0.00011282,2]
[323465405,1714020632928,-3868.79081875,0.00011284,2]
[323465406,1714020632947,-1536.44882895,0.00011284,2]
[323465407,1714020632977,-1262.60927417,0.00011284,2]
[323465412,1714020637847,-279.92283958,0.00011284,2]
[323465413,1714020638162,-571.01966468,0.00011284,2]
[323465414,1714020638215,-2574.229164,0.00011284,2]
[323465415,1714020638269,-3858.91610662,0.00011284,2]
[323465416,1714020640003,-177.12330325,0.00011284,2]
[323465417,1714020640013,-125.70045791,0.00011381,2]
[323465418,1714020640026,-24.29954209,0.00011381,2]
[323465419,1714020640035,-522.2480758,0.00011397,2]
[323465436,1714020642997,-2058.12958686,0.00011397,2]
[323465437,1714020643008,-150.0,0.00011413,2]
[323465438,1714020643017,-150.0,0.00011584,2]
[323465439,1714020643026,-467.52,0.00011642,2]
[323465440,1714020643036,-288.0,0.00011661,2]
[323465441,1714020643045,-1119.92,0.00011668,2]
[323465442,1714020643055,-43.93793312,0.00011672,2]
[323465443,1714020643067,-106.06206688,0.00011672,2]
[323465444,1714020643076,-150.0,0.00011902,2]
[323465445,1714020643086,-57.32812376,0.00011903,2]
[323465446,1714020643097,-654.67187624,0.00011903,2]
[323465447,1714020643106,-150.0,0.00011959,2]
[323465448,1714020643118,-150.0,0.00011994,2]
[323465449,1714020643128,-685.96645,0.00012,2]
[323465450,1714020643137,-150.0,0.00012028,2]
[323465451,1714020643146,-150.0,0.0001204,2]
[323465452,1714020643155,-150.0,0.00012069,2]
[323465453,1714020643164,-3200.0,0.000121,4]
[323465454,1714020643173,-6400.0,0.000122,4]
[323465455,1714020643182,-5148.94847729,0.000123,4]
[323465456,1714020643316,-4451.05152271,0.000123,4]
[323465457,1714020643325,-517.0,0.00012301,2]
[323465458,1714020643334,-150.0,0.00012313,2]
[323465459,1714020643344,-6596.67512999,0.000124,4]
[323465460,1714020646021,-868.44016778,0.000124,4]
[323465461,1714020646469,-327.78649516,0.000124,4]
[323465462,1714020654441,316.9702796,9.378e-05,2]
[323465463,1714020659391,442.313199,9.378e-05,2]
[323465464,1714020659641,362.8160317,9.378e-05,2]
[323465465,1714020676359,160.01021332,9.378e-05,2]
[323465466,1714020683307,1471.99909209,9.378e-05,2]
[323465467,1714020705280,1478.99518179,9.378e-05,2]
[323465468,1714020710130,692.657102,9.378e-05,2]
[323465469,1714020745613,159.62725875,9.378e-05,2]
[323465470,1714020748814,155.0,9.378e-05,2]
[323465471,1714020756444,155.0,9.378e-05,2]
[323465472,1714020757730,155.0,9.378e-05,2]
[323465473,1714020764727,155.31978348,9.378e-05,2]
[323465474,1714020773859,155.0,9.378e-05,2]
[323465475,1714020774355,155.0,9.378e-05,2]
[323465476,1714020794525,230.67496129,9.378e-05,2]
[323465477,1714020795704,155.73297084,9.378e-05,2]
[323465479,1714020908655,20172.44350271,9.378e-05,2]
[323465480,1714020911290,1471.71240548,9.378e-05,2]
[323465481,1714020923643,415.10394089,9.378e-05,2]
[323465482,1714020928867,20172.44350271,9.378e-05,2]
[323465483,1714020933296,1474.80379054,9.378e-05,2]
[323465484,1714020948645,17598.62640933,9.378e-05,2]
[323465485,1714020968430,365.88218524,9.378e-05,2]
[323465486,1714020986353,365.88218524,9.378e-05,2]
[323465487,1714021006363,365.88218524,9.378e-05,2]
[323465488,1714021022361,156.44639847,9.378e-05,2]
[323465489,1714021377374,-674.87033866,9.754e-05,2]
[323465490,1714021377396,-537.54,9.755e-05,2]
[323465491,1714021377420,-411.05818708,0.0001,2]
[323465492,1714021377442,-166.96379572,0.0001,2]
[323465493,1714021379075,571.5845435,0.0001,7]
[323465494,1714021397463,-427.25783952,0.00010893,2]
[323465495,1714021397485,-166.96379571,0.00010895,2]
[323465496,1714021400583,4000.0,0.00010795,2]
[323465497,1714021411957,408.61554877,0.0001,2]
[323465498,1714021429937,408.27704373,0.0001,2]
[323465499,1714021452163,4459.3547,9.899e-05,2]
[323465500,1714021559028,539.12780736,0.00010999,2]
[323465501,1714021616844,179.7000076,0.00010999,2]
[323465502,1714021622555,298.81932009,0.00010999,2]
[323465503,1714021630860,179.7000076,0.00010999,2]
[323465504,1714021640396,298.81932009,0.00010999,2]
[323465505,1714021646603,546.84456326,0.00010999,2]
[323465506,1714021652863,179.7000076,0.00010999,2]
[323465507,1714021653409,427.25783952,0.00010999,2]
[323465508,1714021662395,298.81932009,0.00010999,2]
[323465509,1714021664541,374.34052308,0.00010999,2]
[323465510,1714021670995,179.7000076,0.00010999,2]
[323465511,1714021682404,298.81932009,0.00010999,2]
[323465512,1714021687724,173.10377099,0.00010999,2]
[323465513,1714021688450,280.66723176,0.00010999,2]
[323465514,1714021689246,288.51985909,0.00010999,2]
[323465515,1714021690861,179.7000076,0.00010999,2]
[323465516,1714021691454,320.13918775,0.00010999,2]
[323465517,1714021692592,316.9702796,0.00010999,2]
[323465518,1714021694681,174.14325529,0.00010999,2]
[323465519,1714021695193,299.59736826,8.799e-05,2]
[323465520,1714021695704,399.3527009,0.00010999,2]
[323465521,1714021699797,337.38618301,0.00010999,2]
[323465522,1714021700018,306.04689831,0.00010999,2]
[323465523,1714021702414,298.81932009,0.00010999,2]
[323465524,1714021705120,205.39597181,0.00010999,2]
[323465525,1714021705689,173.10377099,0.00010999,2]
[323465526,1714021707382,288.51985909,0.00010999,2]
[323465527,1714021712489,316.9702796,0.00010999,2]
[323465528,1714021712859,161.22170261,0.00010999,2]
[323465529,1714021713383,320.13918775,0.00010999,2]
[323465530,1714021713628,399.3527009,0.00010999,2]
[323465531,1714021722406,298.81932009,0.00010999,2]
[323465532,1714021725287,264.71620101,0.00010999,2]
[323465533,1714021727662,172.89372257,0.00010999,2]
[323465534,1714021728498,316.9702796,0.00010999,2]
[323465535,1714021729267,155.0,0.00010999,2]
[323465536,1714021731377,264.26423255,0.00010999,2]
[323465537,1714021731631,399.3527009,0.00010999,2]
[323465538,1714021741534,583.91,9.464e-05,2]
[323465539,1714021742408,298.81932009,0.00010999,2]
[323465540,1714021748501,310.50922421,0.00010999,2]
[323465541,1714021749652,399.3527009,0.00010999,2]
[323465542,1714021762474,262.10892601,0.00010999,2]
[323465555,1714021832619,-30000.0,0.0001,2]
[323465557,1714021832629,-36.71039408,0.00010999,2]
[323465558,1714021832638,-399.3527009,0.00010999,2]
[323465560,1714021832649,-680.35641552,0.00011,2]
[323465561,1714021832658,-164.70595407,0.00011297,2]
[323465563,1714021832668,-2322.33989639,0.00011397,2]
[323465564,1714021832678,-151.9,0.00011593,2]
[323465566,1714021832687,-278.19,0.00011623,2]
[323465567,1714021832697,-322.49,0.00011624,2]
[323465568,1714021832707,-1732.87,0.00011624,2]
[323465569,1714021832716,-278.19,0.00011626,2]
[323465570,1714021832726,-278.19,0.00011629,2]
[323465571,1714021832736,-278.19,0.00011632,2]
[323465572,1714021832746,-278.19,0.00011635,2]
[323465573,1714021832758,-211.24,0.00011635,2]
[323465574,1714021832768,-1000.0,0.00011637,2]
[323465575,1714021832778,-278.19,0.00011638,2]
[323465576,1714021832789,-278.19,0.00011641,2]
[323465577,1714021832799,-150.0,0.00011643,2]
[323465578,1714021832809,-247.95,0.00011643,2]
[323465579,1714021832818,-278.19,0.00011645,2]